bitfinex/quotes_ETHUSD_20220305
["timestamp","ask_amount","ask_price","bid_price","bid_amount"]
[1646440163660,1.01861309,2618.4,2618.1,0.00188648]
[1646440164456,12.1951,2619.1,2618.1,0.00188648]
[1646440164657,12.1951,2619.1,2618.1,0.00215345]
[1646440164865,12.1951,2619.1,2618.1,0.00403989]
[1646440165461,1.22461257,2618.7,2618.1,0.00403989]
[1646440165961,1.22461257,2618.7,2618.1,0.00215345]
[1646440166219,1.22461257,2618.7,2618.5,0.00188055]
[1646440166913,1.22461257,2618.7,2618.1,0.00215345]
[1646440167114,1.22461257,2618.7,2618.0,0.14461608]
[1646440167314,1.22461257,2618.7,2618.5,0.00188055]
[1646440167814,11.8132,2619.1,2618.5,0.00188055]
[1646440168016,4.5,2619.0,2618.0,0.09865008]
[1646440168215,4.8819,2619.0,2618.1,0.00215896]
[1646440168412,4.5,2619.0,2618.5,0.00188055]
[1646440168613,0.97098974,2618.9,2618.5,0.00188055]
[1646440169215,12.63098974,2618.9,2618.5,0.00188055]
[1646440169414,1.35288974,2618.9,2617.9,0.00215896]
[1646440169861,0.975409,2618.5,2617.9,0.00215896]
[1646440170364,15.3841,2619.2,2617.7,0.28879896]
[1646440170365,0.3819,2618.8,2617.7,0.28879896]
[1646440170563,0.3819,2618.8,2617.8,0.00215896]
[1646440171563,1.15101232,2618.2,2617.8,0.00215896]
[1646440171764,0.93608027,2618.2,2617.6,0.1908]
[1646440171965,0.93608027,2618.2,2617.7,0.69346557]
[1646440172165,0.93608027,2618.2,2617.6,0.88426557]
[1646440173713,0.93608027,2618.2,2617.8,0.69346557]
[1646440174514,0.93608027,2618.2,2617.8,0.00230085]
[1646440175514,0.93608027,2618.2,2617.6,0.19295896]
[1646440175713,0.93608027,2618.2,2617.7,0.69346557]
[1646440175913,0.93608027,2618.2,2617.9,0.00230077]
[1646440176913,0.93608027,2618.2,2617.9,0.00230072]
[1646440177116,15.16,2618.7,2617.9,0.00230072]
[1646440177357,12.9723,2618.8,2617.9,0.00230072]
[1646440177559,15.16,2619.0,2617.9,0.69576629]
[1646440177760,15.16,2619.0,2618.0,0.00215896]
[1646440178164,15.16,2619.0,2618.2,0.0020417]
[1646440178363,1.10016331,2618.4,2618.2,0.0020417]
[1646440178966,1.10016331,2618.4,2617.8,0.00215896]
[1646440179565,1.10016331,2618.4,2618.2,0.0020417]
[1646440180367,12.76016331,2618.4,2618.2,0.0020417]
[1646440180567,12.76016331,2618.4,2617.8,0.00215896]
[1646440181412,0.00821241,2618.2,2617.8,0.00215896]
[1646440181610,0.00821241,2618.2,2617.7,1.2065]
[1646440181814,0.00821241,2618.2,2618.0,0.00186168]
[1646440182714,12.76016331,2618.4,2618.0,0.00186168]
[1646440183117,1.10016331,2618.4,2618.0,0.00186168]
[1646440184117,1.10016331,2618.4,2617.8,0.69562453]
[1646440184319,1.10016331,2618.4,2618.1,0.00186161]
[1646440185155,1.10016331,2618.4,2617.8,0.69562453]
[1646440185356,1.5131,2618.9,2618.1,0.00208602]
[1646440185556,5.2082,2619.2,2618.1,0.00208602]
[1646440185757,2.4971,2619.2,2618.1,0.00208602]
[1646440185958,2.4971,2619.2,2618.1,0.00424498]
[1646440186161,3.5,2619.1,2618.1,0.00424498]
[1646440186363,0.3819,2619.0,2618.1,0.00424498]
[1646440186565,1.09938666,2618.7,2618.5,0.0020857]
[1646440187362,16.3047,2619.2,2618.5,0.0020857]
[1646440187562,15.1571,2619.2,2618.5,0.0020857]
[1646440187762,15.1571,2619.2,2618.5,0.00208574]
[1646440188163,1.40889239,2619.1,2618.5,0.00208574]
[1646440189022,1.40889239,2619.1,2618.7,0.00205508]
[1646440189222,0.99689419,2619.0,2618.7,0.00205508]
[1646440189423,1.40889239,2618.9,2618.7,0.00205508]
[1646440189824,1.40889239,2618.9,2618.4,0.14134832]
[1646440190025,1.40889239,2618.9,2618.3,0.14350728]
[1646440190224,1.40889239,2618.9,2618.7,0.00205508]
[1646440190924,0.00821241,2618.8,2618.7,0.00205508]
[1646440191125,0.00821241,2618.8,2618.4,0.14134832]
[1646440191126,1.4171048,2618.8,2618.4,0.14134832]
[1646440191325,1.4171048,2618.8,2618.5,0.14134832]
[1646440191326,0.87930214,2618.6,2618.5,0.14134832]
[1646440191826,0.71972014,2618.6,2618.3,0.14134832]
[1646440192658,0.71972014,2618.6,2618.4,0.00229518]
[1646440192659,1.413854,2618.5,2618.4,0.00229518]
[1646440192954,1.413854,2618.5,2618.4,0.1436435]
[1646440193355,1.413854,2618.5,2618.4,0.14134832]
[1646440197508,1.413854,2618.5,2618.1,0.00215896]
[1646440197509,1.413854,2618.5,2618.3,0.14338537]
[1646440197706,1.413854,2618.5,2618.4,0.14134832]
[1646440198606,1.413854,2618.5,2618.3,0.00203705]
[1646440198811,1.413854,2618.5,2618.3,0.14338537]
[1646440199010,1.413854,2618.5,2618.4,0.14134832]
[1646440200559,0.71972014,2618.6,2618.3,0.69346557]
[1646440201059,1.41640122,2618.5,2618.4,0.14134832]
[1646440201258,1.41640122,2618.7,2618.4,0.14134832]
[1646440202060,1.41640122,2618.7,2618.5,0.14134832]
[1646440203168,0.00821241,2618.8,2618.5,0.83481389]
[1646440203363,0.00821241,2618.8,2618.6,0.14134832]
[1646440203603,0.00821241,2618.8,2618.7,0.14134832]
[1646440203809,1.42495485,2618.8,2618.5,0.69530004]
[1646440204014,0.00821241,2618.8,2618.5,0.69530004]
[1646440204208,0.00821241,2618.8,2618.5,0.69346557]
[1646440204408,0.00821241,2618.8,2618.6,0.14134832]
[1646440204609,0.00821241,2618.8,2618.7,0.14134832]
[1646440205009,1.42478756,2618.8,2618.7,0.14134832]
[1646440206011,13.08478756,2618.8,2618.7,0.14134832]
[1646440206210,13.78534282,2618.8,2618.6,0.00183437]
[1646440206409,13.07657515,2618.7,2618.6,0.00183437]
[1646440206609,13.07657515,2618.7,2618.0,0.00215896]
[1646440206815,0.98145845,2618.1,2618.0,0.00215896]
[1646440207012,13.32445767,2618.8,2617.9,0.69346557]
[1646440207210,1.44738487,2618.7,2617.9,0.69562453]
[1646440207861,1.44738487,2618.7,2618.0,0.80955721]
[1646440208056,1.04981065,2618.4,2618.1,0.80955721]
[1646440208260,1.04981065,2618.4,2618.2,0.11806597]
[1646440208459,1.04981065,2618.4,2618.3,0.11609164]
[1646440208862,2.49770423,2618.4,2618.3,0.11609164]
[1646440209061,2.80476924,2618.4,2618.3,0.11609164]
[1646440209264,3.11183425,2618.4,2618.3,0.11609164]
[1646440211507,2.0620236,2618.4,2618.3,0.11609164]
[1646440211908,2.06328651,2618.4,2618.3,0.11609164]
[1646440212110,2.06340589,2618.4,2618.3,0.11609164]
[1646440212313,0.61413002,2618.4,2618.3,0.11609164]
[1646440212917,2.06352109,2618.4,2618.3,0.11609164]
[1646440213120,0.61413002,2618.4,2618.3,0.11609164]
[1646440213317,2.06390937,2618.4,2618.3,0.11609164]
[1646440213515,0.61413002,2618.4,2618.3,0.11609164]
[1646440213814,0.52985528,2618.4,2618.3,0.11609164]
[1646440214016,1.97966027,2618.4,2618.3,0.11609164]
[1646440214216,1.75687,2618.4,2618.3,0.11609164]
[1646440214414,1.97966027,2618.4,2618.3,0.11609164]
[1646440214616,3.19758,2618.4,2618.3,0.11609164]
[1646440216659,18.35758,2618.4,2618.3,0.11609164]
[1646440217060,18.35758,2618.4,2618.2,0.00229535]
[1646440217061,16.16,2618.3,2618.2,0.00229535]
[1646440217362,17.11589,2618.3,2618.2,0.00229535]
[1646440217559,17.81644526,2618.3,2618.2,0.00229535]
[1646440217758,18.12351027,2618.3,2618.2,0.00229535]
[1646440217959,18.12351027,2618.3,2618.2,0.00203713]
[1646440218162,19.12351027,2618.3,2618.2,0.00203713]
[1646440218361,18.42295501,2618.3,2618.2,0.00203713]
[1646440218809,17.46706501,2618.3,2618.2,0.00203713]
[1646440219011,19.10717188,2618.3,2618.1,0.00203721]
[1646440219309,11.66,2618.2,2618.1,0.00203721]
[1646440219710,12.88279027,2618.2,2618.1,0.00203721]
[1646440219910,1.03346468,2617.8,2617.3,0.00215896]
[1646440220112,1.03346468,2617.8,2617.3,0.00815126]
[1646440221115,1.03346468,2617.8,2617.2,1.82652453]
[1646440221318,1.03346468,2617.8,2617.4,0.0020719]
[1646440222215,1.03346468,2617.8,2617.2,1.13305896]
[1646440222664,12.69346468,2617.8,2617.5,0.00207186]
[1646440222862,1.03346468,2617.8,2617.5,0.00207186]
[1646440223064,0.30706501,2617.6,2617.5,0.00207186]
[1646440223663,0.30706501,2617.6,2617.5,0.00414369]
[1646440223864,0.30706501,2617.6,2617.5,0.00207183]
[1646440225065,0.52985528,2617.6,2617.4,0.00183506]
[1646440225464,0.52985528,2617.6,2617.4,0.69530063]
[1646440225867,0.52985528,2617.6,2617.4,0.69346557]
[1646440226113,0.52985528,2617.6,2617.4,0.69530066]
[1646440226313,0.52985528,2617.6,2617.5,3.5]
[1646440226812,0.52985528,2617.6,2617.5,1.0]
[1646440227012,0.52985528,2617.6,2617.5,4.5]
[1646440227215,0.52985528,2617.6,2617.5,1.0]
[1646440227613,0.52985528,2617.6,2617.4,1.10176399]
[1646440227814,0.52985528,2617.6,2617.4,0.00183506]
[1646440228014,0.52985528,2617.6,2617.4,0.7029625]
[1646440228215,0.22279027,2617.6,2617.4,0.7029625]
[1646440228417,0.30706501,2617.5,2617.4,0.7029625]
[1646440228616,0.30706501,2617.5,2617.4,0.70301065]
[1646440229421,0.30706501,2617.5,2617.4,0.70112744]
[1646440230367,0.52985528,2617.5,2617.4,0.70112744]
[1646440230971,0.52985528,2617.5,2617.3,0.70301068]
[1646440231167,0.52985528,2617.5,2617.3,0.00188324]
[1646440231768,0.52985528,2617.5,2617.2,0.70112744]
[1646440231967,0.52985528,2617.5,2617.1,0.83932741]
[1646440232166,0.52985528,2617.5,2617.3,0.00187245]
[1646440232968,0.52985528,2617.5,2617.2,0.70112744]
[1646440233168,0.52985528,2617.5,2617.1,0.83932741]
[1646440233367,0.22279027,2617.5,2617.3,0.00187245]
[1646440233653,0.30706501,2617.4,2617.3,0.00187245]
[1646440233851,0.24419798,2617.4,2617.3,0.00187245]
[1646440234251,0.24419798,2617.4,2617.2,2.6185381]
[1646440234650,0.24419798,2617.4,2617.2,2.62041059]
[1646440235351,0.24419798,2617.4,2617.3,0.70112744]
[1646440235753,0.46698825,2617.4,2617.3,0.70112744]
[1646440237154,0.46698825,2617.4,2617.3,0.089785]
[1646440237561,0.46698825,2617.4,2617.3,0.79091096]
[1646440237960,0.46698825,2617.4,2617.3,0.089785]
[1646440238668,0.22279027,2617.4,2617.3,0.089785]
[1646440238868,0.22279027,2617.4,2617.2,0.09165992]
[1646440239066,0.46698825,2617.4,2617.3,0.089785]
[1646440239468,0.46698825,2617.4,2617.2,0.09165938]
[1646440239666,0.46698825,2617.4,2617.3,0.089785]
[1646440240066,0.46698825,2617.4,2617.2,0.09165938]
[1646440240269,0.46698825,2617.4,2617.2,0.089785]
[1646440240468,0.46698825,2617.4,2617.2,0.09165938]
[1646440240669,0.24419798,2617.4,2617.2,0.09165938]
[1646440241114,0.22279027,2617.3,2617.2,0.09165938]
[1646440241510,0.22279027,2617.3,2617.2,0.089785]
[1646440241709,0.22279027,2617.3,2617.2,0.09165941]
[1646440242209,0.22279027,2617.3,2617.2,0.00187441]
[1646440242612,0.22279027,2617.3,2617.2,0.089785]
[1646440242813,0.22279027,2617.3,2617.0,0.79306992]
[1646440243013,0.22279027,2617.3,2617.2,0.089785]
[1646440243613,0.22279027,2617.3,2617.1,0.00187457]
[1646440243817,0.22279027,2617.3,2617.0,0.79091096]
[1646440244015,0.22279027,2617.3,2617.1,0.09165957]
[1646440244215,0.22279027,2617.3,2617.2,0.089785]
[1646440244417,0.3819,2618.0,2617.1,0.00187457]
[1646440244618,1.84402855,2617.9,2617.1,0.00187457]
[1646440244868,1.84402855,2617.9,2617.1,0.00403353]
[1646440244869,1.46212855,2617.8,2617.1,0.00403353]
[1646440245059,1.46212855,2617.8,2617.1,0.00215896]
[1646440245261,1.46212855,2617.8,2617.4,0.00187436]
[1646440245459,14.1573,2618.1,2617.4,0.00187436]
[1646440245460,1.04739801,2617.7,2617.4,0.00187436]
[1646440245660,0.3819,2618.0,2617.4,0.00187436]
[1646440245861,15.3761,2618.1,2617.4,0.00187436]
[1646440246060,1.46215359,2618.0,2617.4,0.00187436]
[1646440246261,1.46215359,2618.0,2617.2,0.00215896]
[1646440246463,1.46215359,2618.0,2617.6,0.00187422]
[1646440246760,1.09098137,2617.8,2617.6,0.00187422]
[1646440246962,1.4623788,2617.7,2617.6,0.00187422]
[1646440247563,1.4623788,2617.7,2617.3,0.089785]
[1646440247765,16.52186677,2617.7,2617.6,0.00187422]
[1646440247964,13.1223788,2617.7,2617.6,0.00187422]
[1646440248166,15.0785088,2617.7,2617.6,0.00187422]
[1646440248614,14.1223788,2617.7,2617.6,0.00187422]
[1646440249020,14.1223788,2617.7,2617.3,0.0811817]
[1646440249217,11.90419798,2617.5,2616.9,1.17205896]
[1646440249419,0.93428434,2617.1,2617.0,0.08120342]
[1646440249819,0.93428434,2617.1,2616.7,0.00215896]
[1646440250019,0.93428434,2617.1,2616.5,0.70112596]
[1646440250220,0.93428434,2617.1,2616.7,0.00749946]
[1646440250519,0.93428434,2617.1,2616.8,0.08120342]
[1646440251221,0.93428434,2617.1,2616.9,0.08120342]
[1646440251423,0.93428434,2617.1,2617.0,0.08120342]
[1646440251821,0.93428434,2617.1,2616.8,0.00187476]
[1646440252221,0.93428434,2617.1,2616.8,0.08120342]
[1646440252465,4.43428434,2617.1,2616.9,0.08120342]
[1646440252766,0.93428434,2617.1,2617.0,0.08120342]
[1646440252964,2.40457703,2617.1,2617.0,0.08120342]
[1646440253166,16.16,2617.0,2616.9,0.00187469]
[1646440253364,17.63029269,2617.0,2616.9,0.00187469]
[1646440253564,18.63029269,2617.0,2616.2,0.00215896]
[1646440253767,18.63029269,2617.0,2616.0,0.08054341]
[1646440253768,11.66,2616.8,2616.0,0.08054341]
[1646440253968,1.47029269,2616.7,2616.5,0.00807735]
[1646440254173,2.47002404,2616.7,2616.6,0.07838759]
[1646440254567,2.71422202,2616.7,2616.6,0.07838759]
[1646440254970,1.24392933,2616.7,2616.6,0.07838759]
[1646440255670,1.24392933,2616.7,2616.5,0.00201934]
[1646440255671,12.90392933,2616.7,2616.5,0.00201934]
[1646440256313,13.90392933,2616.7,2616.5,0.00018243]
[1646440256514,13.13769849,2616.6,2616.5,0.00018243]
[1646440256717,14.13769849,2616.6,2616.5,0.00018243]
[1646440257116,14.13769849,2616.6,2616.2,0.07838759]
[1646440257315,12.66,2616.6,2616.3,0.07838759]
[1646440257516,13.0419,2616.6,2615.7,0.00215896]
[1646440257717,0.87335615,2616.0,2615.7,0.00215896]
[1646440257916,13.1944,2616.6,2615.7,0.07839081]
[1646440258118,1.5344,2616.6,2615.7,0.08054977]
[1646440258418,0.5344,2616.6,2615.7,0.78167573]
[1646440258619,0.1525,2616.6,2615.7,0.78167573]
[1646440258818,0.1525,2616.6,2615.8,0.77951677]
[1646440259018,0.1525,2616.6,2615.9,0.07839081]
[1646440259222,1.25663962,2616.6,2616.0,0.07839081]
[1646440259419,1.25663962,2616.6,2616.1,0.07839081]
[1646440259719,1.25663962,2616.6,2616.2,0.07839081]
[1646440259969,0.24419798,2616.2,2615.8,0.00215896]
[1646440260168,0.24419798,2616.2,2615.8,0.07838541]
[1646440260571,0.24419798,2616.2,2615.8,4.27951137]
[1646440260772,0.24419798,2616.2,2615.9,0.07838541]
[1646440261069,0.24419798,2616.2,2615.9,0.78179446]
[1646440261672,0.24419798,2616.2,2616.0,0.70112596]
[1646440262571,0.24419798,2616.2,2616.1,0.07838541]
[1646440262973,0.24419798,2616.2,2615.9,0.08066845]
[1646440263171,0.24419798,2616.2,2616.0,0.07838541]
[1646440263372,0.24419798,2616.2,2615.8,0.77951137]
[1646440263616,0.24419798,2616.2,2616.1,0.07838541]
[1646440263817,0.24419798,2616.2,2615.8,0.77951137]
[1646440265018,0.93734834,2616.7,2615.8,0.77951137]
[1646440265217,0.24419798,2616.0,2615.9,0.00215896]
[1646440265417,0.24419798,2616.0,2615.8,0.77951137]
[1646440266318,0.24419798,2616.0,2615.9,3.8819]
[1646440266518,0.24419798,2616.0,2615.9,4.91631541]
[1646440266717,0.24419798,2616.0,2615.9,2.41631541]
[1646440266923,0.24419798,2616.0,2615.9,5.91631541]
[1646440267372,0.24419798,2616.0,2615.9,1.46028541]
[1646440267772,0.24419798,2616.0,2615.9,0.46028541]
[1646440268574,0.24419798,2616.0,2615.9,3.96028541]
[1646440268777,0.24419798,2616.0,2615.9,4.96028541]
[1646440269777,0.24419798,2616.0,2615.9,1.46028541]
[1646440270180,0.24419798,2616.0,2615.9,1.15933918]
[1646440270378,0.24419798,2616.0,2615.9,0.46028541]
[1646440271215,0.24419798,2616.0,2615.9,0.07838541]
[1646440271917,0.24419798,2616.0,2615.8,0.08038699]
[1646440272122,0.24419798,2616.0,2615.9,0.07838541]
[1646440272318,0.24419798,2616.0,2615.8,0.00200158]
[1646440272518,1.03158502,2615.9,2615.8,0.00200158]
[1646440272921,1.275783,2615.9,2615.8,0.00200158]
[1646440273124,1.275783,2615.9,2615.7,0.07838541]
[1646440273323,1.275783,2615.9,2615.8,0.00200158]
[1646440273725,2.4,2615.8,2615.7,0.07217458]
[1646440273923,2.4,2615.8,2615.6,0.0289262]
[1646440274324,14.06,2615.8,2615.7,0.00202949]
[1646440275171,2.4,2615.8,2615.6,0.0289262]
[1646440275371,1.275783,2615.9,2615.6,0.0289262]
[1646440275372,0.24419798,2615.9,2615.6,0.0289262]
[1646440276372,0.21977819,2615.9,2615.6,0.0289262]
[1646440277874,1.5804729,2616.2,2615.6,0.03117596]
[1646440278076,1.1985729,2616.2,2615.6,0.03117596]
[1646440278277,5.3532,2616.8,2615.6,3.53117596]
[1646440278278,0.21977819,2615.9,2615.6,3.53117596]
[1646440278616,0.21977819,2615.9,2615.6,0.03117596]
[1646440278821,0.21977819,2615.9,2615.6,1.0289262]
[1646440279019,0.21977819,2615.9,2615.6,0.0289262]
[1646440279219,0.21977819,2615.9,2615.6,0.03117596]
[1646440279419,0.21977819,2615.9,2615.7,1.03212123]
[1646440279823,0.21977819,2615.9,2615.6,0.03117596]
[1646440280026,0.21977819,2615.9,2615.6,0.6026062]
[1646440280224,0.21977819,2615.9,2615.6,0.9845062]
[1646440280423,0.21977819,2615.9,2615.8,0.9561]
[1646440283363,0.21977819,2615.9,2615.7,2.24494119]
[1646440283564,0.21977819,2615.9,2615.7,1.2429446]
[1646440283767,0.90905074,2616.5,2615.7,1.2429446]
[1646440283968,12.1938,2616.8,2615.7,4.74710015]
[1646440284170,0.21977819,2616.1,2615.8,0.00215896]
[1646440284368,0.21977819,2616.1,2615.7,0.00199659]
[1646440284768,0.21977819,2616.1,2615.6,0.0289262]
[1646440285170,0.87128072,2616.0,2615.7,0.00199659]
[1646440286223,0.87128072,2616.0,2615.7,0.00379703]
[1646440286424,11.66,2615.9,2615.7,0.00180044]
[1646440287324,11.66,2615.9,2615.6,0.0289262]
[1646440287523,11.66,2615.9,2615.7,0.00180048]
[1646440287926,0.87128072,2616.0,2615.7,0.00180048]
[1646440288523,0.21977819,2616.1,2615.6,0.0289262]
[1646440288728,0.21977819,2616.1,2615.7,0.00180044]
[1646440289128,0.3819,2616.5,2615.7,0.00180044]
[1646440289328,0.21977819,2616.1,2615.7,0.00180044]
[1646440289528,0.95629353,2616.3,2615.7,0.00180044]
[1646440289729,0.95629353,2616.3,2615.6,0.03108516]
[1646440289969,0.95629353,2616.3,2615.7,0.00184457]
[1646440290168,11.26167819,2616.6,2615.7,0.00184457]
[1646440290768,11.26167819,2616.6,2615.6,0.03108516]
[1646440291168,11.26167819,2616.6,2615.7,0.00184457]
[1646440291368,1.22843915,2616.2,2615.7,0.00184457]
[1646440293176,1.22843915,2616.2,2615.6,0.03108516]
[1646440293618,1.22843915,2616.2,2615.7,0.00183464]
[1646440294124,1.22843915,2616.2,2615.7,0.08022921]
[1646440294125,1.47699999,2616.1,2615.7,0.08022921]
[1646440294723,1.47699999,2616.1,2615.7,0.08206385]
[1646440294925,1.47699999,2616.1,2615.7,0.08022921]
[1646440295727,1.47699999,2616.1,2615.7,0.07839457]
[1646440295927,1.47699999,2616.1,2615.7,0.08022921]
[1646440296126,1.42699999,2616.1,2615.7,0.08022921]
[1646440296324,1.10383594,2615.8,2615.7,0.08022921]
[1646440296525,0.99345235,2615.8,2615.7,0.08022921]
[1646440296927,0.99345235,2615.8,2615.7,0.07839457]
[1646440298169,12.25513054,2615.8,2615.7,0.07839457]
[1646440299675,0.99345235,2615.8,2615.7,0.07839457]
[1646440300673,12.65345235,2615.8,2615.7,0.07839457]
[1646440302422,16.16,2615.7,2615.6,0.03094867]
[1646440302824,16.16,2615.7,2615.6,0.0289262]
[1646440303021,17.16,2615.7,2615.6,0.0289262]
[1646440303222,17.16,2615.7,2615.6,0.03094867]
[1646440303424,12.66,2615.7,2615.6,0.03094867]
[1646440303622,11.66,2615.7,2615.6,0.03094867]
[1646440303825,12.66,2615.7,2615.6,0.03094867]
[1646440304026,12.66,2615.7,2615.6,0.0289262]
[1646440304627,1.0,2615.7,2615.6,0.0289262]
[1646440304881,0.99345235,2615.8,2615.6,0.0289262]
[1646440305070,12.65345235,2615.8,2615.6,0.0289262]
[1646440305271,11.66,2616.1,2615.6,0.0289262]
[1646440305471,1.0,2616.2,2615.6,0.0289262]
[1646440305672,1.0,2616.3,2615.6,0.0289262]
[1646440305872,4.20082947,2616.5,2615.6,0.0289262]
[1646440306077,11.66,2616.4,2615.6,0.03108516]
[1646440306273,0.97477668,2616.3,2615.9,0.93646798]
[1646440306474,0.70082947,2616.5,2615.6,0.03108516]
[1646440306673,2.62105617,2616.8,2615.7,0.00179969]
[1646440306674,0.70082947,2616.8,2615.7,0.00179969]
[1646440306872,6.05192947,2616.9,2615.7,0.00179969]
[1646440307075,11.66,2616.8,2615.7,0.00179969]
[1646440307273,11.66,2616.8,2615.7,0.00395865]
[1646440307675,1.17160091,2616.6,2615.7,0.89400023]
[1646440307877,12.83160091,2616.6,2615.8,0.00215896]
[1646440308478,11.66,2616.4,2615.8,0.00215896]
[1646440308727,11.66,2616.2,2615.7,0.00922369]
[1646440309126,11.66,2616.2,2615.7,0.01106843]
[1646440309323,15.16,2616.5,2615.7,0.00922383]
[1646440309525,11.66,2616.5,2615.7,0.00922383]
[1646440309725,15.16,2616.5,2615.7,0.00922383]
[1646440310325,1.05769101,2615.9,2615.7,0.00922383]
[1646440310525,1.05769101,2615.9,2615.7,0.00184474]
[1646440311228,1.05769101,2615.9,2615.6,0.0289262]
[1646440311626,1.05769101,2615.9,2615.7,0.00183464]
[1646440312677,1.05769101,2615.9,2615.7,0.00366928]
[1646440312880,1.05769101,2615.9,2615.7,0.00183464]
[1646440313078,12.66,2616.5,2615.7,0.00183464]
[1646440313278,11.66,2616.4,2615.7,0.00183464]
[1646440313478,4.35352947,2616.7,2615.7,0.00183464]
[1646440313479,11.66,2616.6,2615.7,0.00183464]
[1646440313681,11.66,2616.6,2615.6,0.03108516]
[1646440314083,1.0225535,2616.4,2615.7,0.00183461]
[1646440314683,0.70082947,2616.7,2615.7,0.00183461]
[1646440314885,11.66,2616.8,2615.7,0.00183461]
[1646440315084,11.66,2616.8,2615.7,2.06510227]
[1646440315285,11.66,2616.8,2615.8,0.00215896]
[1646440315685,12.36082947,2616.8,2615.8,0.00215896]
[1646440315885,1.0916926,2616.5,2615.8,0.00215896]
[1646440316530,1.0916926,2616.5,2615.8,0.00950634]
[1646440317327,1.0916926,2616.5,2615.8,0.00215896]
[1646440317530,1.0916926,2616.5,2615.8,0.28901896]
[1646440317929,1.0916926,2616.5,2615.8,0.00215896]
[1646440319897,11.66,2616.8,2615.8,0.95832256]
[1646440320685,1.05867915,2616.5,2615.8,0.95832256]
[1646440321091,12.36082947,2616.8,2615.8,0.95832256]
[1646440321289,12.36082947,2616.8,2615.8,0.96566789]
[1646440321290,11.66,2616.8,2615.8,0.96566789]
[1646440321893,11.66,2616.8,2615.8,1.66472166]
[1646440322293,11.66,2616.8,2615.8,1.65737633]
[1646440322590,1.48281857,2616.7,2615.9,0.07839406]
[1646440322790,1.09616264,2616.5,2615.9,0.07839406]
[1646440322993,1.48281857,2616.4,2615.9,0.07839406]
[1646440323624,16.64281857,2616.4,2616.0,0.07839406]
[1646440323830,1.48281857,2616.3,2616.1,0.07839406]
[1646440324031,0.99076842,2615.9,2615.8,0.00215896]
[1646440324228,0.89111707,2615.9,2615.7,1.22608256]
[1646440324431,0.89111707,2615.9,2615.8,0.07852731]
[1646440325030,0.89111707,2615.9,2615.7,0.0803638]
[1646440325228,11.66,2616.4,2615.8,0.07852731]
[1646440325430,1.47105459,2616.3,2615.7,0.0803638]
[1646440325631,1.47105459,2616.3,2615.8,0.07852731]
[1646440325833,1.47105459,2616.3,2615.9,0.07852731]
[1646440326031,1.47105459,2616.3,2616.0,0.07852731]
[1646440326232,1.47105459,2616.3,2616.1,0.07852731]
[1646440326532,1.47105459,2616.3,2616.2,0.07852731]
[1646440326731,2.67717853,2616.3,2615.7,0.08036836]
[1646440326934,1.47105459,2616.2,2615.7,0.07852731]
[1646440327384,1.47105459,2616.2,2615.7,0.08773269]
[1646440327778,1.13602181,2615.9,2615.7,0.08773269]
[1646440327980,1.47105459,2615.8,2615.7,0.08773269]
[1646440328178,1.13602181,2615.9,2615.7,0.08773269]
[1646440328384,11.66,2616.3,2615.7,0.08773269]
[1646440328580,1.47132183,2616.2,2615.7,0.08036836]
[1646440328979,16.63132183,2616.2,2615.7,0.08036836]
[1646440329178,11.66,2616.0,2615.7,0.08036836]
[1646440329379,1.47132183,2615.9,2615.7,0.07852731]
[1646440329582,15.16,2615.8,2615.7,0.07852731]
[1646440329779,15.16,2615.8,2615.7,0.08036275]
[1646440329780,17.63132183,2615.8,2615.7,0.08036275]
[1646440329987,14.13132183,2615.8,2615.7,0.00183544]
[1646440330183,15.14635746,2615.8,2615.7,0.00183544]
[1646440330380,15.14635746,2615.8,2615.7,0.08025295]
[1646440330579,15.14635746,2615.8,2615.6,0.0289262]
[1646440330783,16.63132183,2615.7,2615.6,0.0289262]
[1646440330983,16.63132183,2615.7,2615.6,0.10918475]
[1646440331250,17.63132183,2615.7,2615.6,0.03076171]
[1646440332150,17.63132183,2615.7,2615.6,0.0289262]
[1646440332949,14.13132183,2615.7,2615.6,0.0289262]
[1646440334551,13.13132183,2615.7,2615.6,0.0289262]
[1646440334755,1.47132183,2615.7,2615.6,0.10734645]
[1646440335772,0.01167284,2616.0,2615.6,0.10734645]
[1646440335974,0.01167284,2616.0,2615.7,0.07842025]
[1646440335975,1.49992935,2615.9,2615.7,0.07842025]
[1646440336371,2.63621527,2615.9,2615.7,0.07842025]
[1646440336574,1.49992935,2615.8,2615.7,0.07842025]
[1646440336975,1.49992935,2615.8,2615.7,0.08039798]
[1646440337777,1.49992935,2615.8,2615.7,0.07842025]
[1646440341528,1.49992935,2615.8,2615.6,0.0289262]
[1646440341727,1.49992935,2615.8,2615.6,0.03072637]
[1646440341926,13.15992935,2615.8,2615.6,0.03072637]
[1646440342127,1.49992935,2615.7,2615.6,0.03072637]
[1646440342574,16.65992935,2615.7,2615.6,0.0289262]
[1646440342771,13.15992935,2615.7,2615.6,0.0289262]
[1646440343172,16.65992935,2615.7,2615.6,0.0289262]
[1646440343373,13.15992935,2615.7,2615.6,0.0289262]
[1646440344376,0.49279846,2615.4,2615.2,0.030848]
[1646440344576,0.49279846,2615.4,2615.3,0.07842631]
[1646440344777,1.62027899,2615.4,2615.3,0.07842631]
[1646440344976,3.10962067,2615.4,2615.3,0.07842631]
[1646440345380,15.76962067,2615.4,2615.3,0.07842631]
[1646440345779,15.76962067,2615.4,2615.2,0.030848]
[1646440345979,13.14934168,2615.3,2615.2,0.030848]
[1646440346226,14.14934168,2615.3,2615.2,0.030848]
[1646440346634,13.14934168,2615.3,2615.2,0.030848]
[1646440347943,1.48934168,2615.3,2615.2,0.030848]
[1646440352676,13.14934168,2615.3,2615.2,0.030848]
[1646440354229,1.48934168,2615.3,2615.2,0.030848]
[1646440355129,1.48573485,2615.3,2615.2,0.030848]
[1646440355331,1.48570815,2615.3,2615.2,0.030848]
[1646440355736,1.62027899,2615.4,2615.2,0.030848]
[1646440358481,1.48560721,2615.3,2615.2,0.030848]
[1646440359682,1.62027899,2615.4,2615.2,0.030848]
[1646440360884,1.62027899,2615.4,2615.2,0.03305657]
[1646440361321,1.48680208,2615.3,2615.2,0.03305657]
[1646440361929,1.48680208,2615.3,2615.2,0.030848]
[1646440362126,1.48680208,2615.3,2615.2,0.03305657]
[1646440363026,1.48680208,2615.3,2615.2,0.030848]
[1646440364432,0.04351026,2615.0,2614.9,0.0307488]
[1646440364629,0.04351026,2615.0,2614.9,0.10918282]
[1646440365574,2.6700378,2615.0,2614.9,0.10918282]
[1646440366181,2.6700378,2615.0,2614.9,0.0307488]
[1646440366379,14.3300378,2615.0,2614.9,0.0307488]
[1646440366978,15.3300378,2615.0,2614.9,0.0307488]
[1646440368079,16.03086727,2615.0,2614.9,0.0307488]
[1646440368280,11.66,2614.8,2614.7,9.38e-05]
[1646440368625,11.66,2614.6,2614.3,0.00218417]
[1646440368833,11.66,2614.4,2614.2,0.0145229]